[Event "Late-Titled-Tuesday-Blitz-January-30-2024"]
[Site "Chess.com"]
[Date "2024.01.30"]
[Round "9"]
[White "karinachess1"]
[Black "Fernando_Offermann"]
[Result "1/2-1/2"]
[WhiteElo "2608"]
[BlackElo "2480"]
[TimeControl "180+1"]
[EndTime "15:44:15 PST"]
[Termination "Game drawn by agreement"]

1. d4 {[%clk 0:03:00.9]} 1... Nf6 {[%clk 0:02:59]} 2. c4 {[%clk 0:03:01.3]} 2...
g6 {[%clk 0:02:58.9]} 3. Nc3 {[%clk 0:02:58.9]} 3... Bg7 {[%clk 0:02:58.9]} 4.
g3 {[%clk 0:02:59.5]} 4... O-O {[%clk 0:02:58.7]} 5. Bg2 {[%clk 0:03:00]} 5...
d6 {[%clk 0:02:59.3]} 6. Nf3 {[%clk 0:03:00.3]} 6... Nbd7 {[%clk 0:02:59.8]} 7.
O-O {[%clk 0:03:00.1]} 7... e5 {[%clk 0:03:00.3]} 8. e4 {[%clk 0:03:00.7]} 8...
c6 {[%clk 0:02:59.1]} 9. h3 {[%clk 0:03:00.9]} 9... a5 {[%clk 0:02:59.3]} 10.
Be3 {[%clk 0:03:01.1]} 10... a4 {[%clk 0:02:59.6]} 11. Qc2 {[%clk 0:03:00.1]}
11... Qa5 {[%clk 0:02:59.3]} 12. Rad1 {[%clk 0:02:53.6]} 12... Re8 {[%clk
0:02:59.5]} 13. Rfe1 {[%clk 0:02:53.3]} 13... Qb4 {[%clk 0:02:48.6]} 14. b3
{[%clk 0:02:42.7]} 14... exd4 {[%clk 0:02:45.4]} 15. Nxd4 {[%clk 0:02:42.6]}
15... axb3 {[%clk 0:02:45.2]} 16. axb3 {[%clk 0:02:43.5]} 16... Nc5 {[%clk
0:02:44.5]} 17. Rb1 {[%clk 0:02:34.1]} 17... Nfd7 {[%clk 0:02:32.2]} 18. Red1
{[%clk 0:02:28.8]} 18... h5 {[%clk 0:02:24.6]} 19. Nde2 {[%clk 0:02:22.1]} 19...
h4 {[%clk 0:02:21.4]} 20. g4 {[%clk 0:02:10.3]} 20... Ne6 {[%clk 0:02:13.5]} 21.
f4 {[%clk 0:02:04.5]} 21... g5 {[%clk 0:02:11.8]} 22. f5 {[%clk 0:02:01.3]}
22... Nec5 {[%clk 0:02:11.5]} 23. Bxg5 {[%clk 0:01:59.2]} 23... Ra3 {[%clk
0:01:56]} 24. Bxh4 {[%clk 0:01:53.2]} 24... Rxb3 {[%clk 0:01:56.1]} 25. Rxb3
{[%clk 0:01:50.7]} 25... Qxb3 {[%clk 0:01:51.4]} 26. Qxb3 {[%clk 0:01:49.3]}
26... Nxb3 {[%clk 0:01:51.8]} 27. Rxd6 {[%clk 0:01:45.4]} 27... Ne5 {[%clk
0:01:52]} 28. Rd8 {[%clk 0:01:16.5]} 28... Rxd8 {[%clk 0:01:48.9]} 29. Bxd8
{[%clk 0:01:17.4]} 29... Nxc4 {[%clk 0:01:49.5]} 30. Be7 {[%clk 0:00:52.9]}
30... Be5 {[%clk 0:01:48.6]} 31. Kf2 {[%clk 0:00:43.7]} 31... b5 {[%clk
0:01:48]} 32. g5 {[%clk 0:00:40]} 32... Nbd2 {[%clk 0:01:44.8]} 33. h4 {[%clk
0:00:36.1]} 33... f6 {[%clk 0:01:29.4]} 34. Bxf6 {[%clk 0:00:28]} 34... Bxf6
{[%clk 0:01:29.1]} 35. gxf6 {[%clk 0:00:28.9]} 35... b4 {[%clk 0:01:29.6]} 36.
Na4 {[%clk 0:00:28.3]} 36... Ba6 {[%clk 0:01:27.6]} 37. Nd4 {[%clk 0:00:26.1]}
37... b3 {[%clk 0:01:25.8]} 38. Kg3 {[%clk 0:00:12.6]} 38... c5 {[%clk
0:01:22.2]} 39. Nxb3 {[%clk 0:00:11.5]} 39... Nxb3 {[%clk 0:01:21.8]} 40. Kf4
{[%clk 0:00:11.3]} 40... Nd4 {[%clk 0:01:19.7]} 41. Nxc5 {[%clk 0:00:10.8]}
41... Bb5 {[%clk 0:01:16.6]} 42. e5 {[%clk 0:00:11.2]} 42... Ne2+ {[%clk
0:01:15.4]} 43. Ke4 {[%clk 0:00:11.7]} 43... Ng3+ {[%clk 0:01:15]} 44. Kd5
{[%clk 0:00:07.3]} 44... Ne3+ {[%clk 0:01:14.5]} 45. Ke6 {[%clk 0:00:06.2]}
45... Nexf5 {[%clk 0:01:12.1]} 46. Bd5 {[%clk 0:00:04.9]} 46... Kf8 {[%clk
0:01:10.3]} 47. h5 {[%clk 0:00:03.8]} 47... Nd4+ {[%clk 0:01:08.6]} 48. Kd6
{[%clk 0:00:04.4]} 48... Nxh5 {[%clk 0:01:08.6]} 49. e6 {[%clk 0:00:05]} 49...
Nxf6 {[%clk 0:01:07.8]} 50. e7+ {[%clk 0:00:04.8]} 50... Ke8 {[%clk 0:01:07.7]}
51. Ne6 {[%clk 0:00:04.5]} 51... Nf5+ {[%clk 0:01:06.6]} 52. Ke5 {[%clk
0:00:04.6]} 52... Nxe7 {[%clk 0:01:06.6]} 53. Nc7+ {[%clk 0:00:05]} 53... Kd7
{[%clk 0:01:06.9]} 54. Nxb5 {[%clk 0:00:05.5]} 54... Nexd5 {[%clk 0:01:06.9]}
55. Nd4 {[%clk 0:00:05.8]} 1/2-1/2

[Event "Late-Titled-Tuesday-Blitz-January-30-2024"]
[Site "Chess.com"]
[Date "2024.01.30"]
[Round "9"]
[White "Mikhail_Bryakin"]
[Black "ArturoCaceres"]
[Result "1-0"]
[WhiteElo "2805"]
[BlackElo "2483"]
[TimeControl "180+1"]
[EndTime "15:44:18 PST"]
[Termination "Mikhail_Bryakin won on time"]

1. e4 {[%clk 0:02:55.5]} 1... c5 {[%clk 0:02:59.3]} 2. c3 {[%clk 0:02:53.2]}
2... g6 {[%clk 0:02:54.7]} 3. d4 {[%clk 0:02:51.4]} 3... cxd4 {[%clk 0:02:55.6]}
4. cxd4 {[%clk 0:02:51.4]} 4... d5 {[%clk 0:02:56.1]} 5. e5 {[%clk 0:02:51]}
5... Nc6 {[%clk 0:02:56.6]} 6. Nc3 {[%clk 0:02:48.4]} 6... Bg7 {[%clk
0:02:54.5]} 7. f4 {[%clk 0:02:48.7]} 7... Bf5 {[%clk 0:02:53.3]} 8. Be3 {[%clk
0:02:47.2]} 8... h5 {[%clk 0:02:53]} 9. Nf3 {[%clk 0:02:46.4]} 9... Bg4 {[%clk
0:02:51.7]} 10. Be2 {[%clk 0:02:46.2]} 10... Nh6 {[%clk 0:02:47.4]} 11. Bf2
{[%clk 0:02:46.3]} 11... Bxf3 {[%clk 0:02:44.2]} 12. Bxf3 {[%clk 0:02:46.2]}
12... e6 {[%clk 0:02:44.8]} 13. O-O {[%clk 0:02:46.3]} 13... O-O {[%clk
0:02:43.6]} 14. h3 {[%clk 0:02:45.9]} 14... h4 {[%clk 0:02:16.1]} 15. Qd2 {[%clk
0:02:44.3]} 15... Nf5 {[%clk 0:02:16.1]} 16. Rfd1 {[%clk 0:02:43.2]} 16... Rc8
{[%clk 0:02:14.1]} 17. Rac1 {[%clk 0:02:40.3]} 17... Na5 {[%clk 0:02:14.3]} 18.
b3 {[%clk 0:02:15]} 18... Nc6 {[%clk 0:01:56.2]} 19. Ne2 {[%clk 0:02:12.5]}
19... Qe7 {[%clk 0:01:47.4]} 20. Bg4 {[%clk 0:02:06.5]} 20... Bh6 {[%clk
0:01:37.4]} 21. Qe1 {[%clk 0:02:04.5]} 21... g5 {[%clk 0:01:30.9]} 22. Bxf5
{[%clk 0:01:53.6]} 22... exf5 {[%clk 0:01:31.8]} 23. fxg5 {[%clk 0:01:53.8]}
23... Bxg5 {[%clk 0:01:32.7]} 24. Rc3 {[%clk 0:01:46.9]} 24... Nb4 {[%clk
0:01:17.4]} 25. Rf3 {[%clk 0:01:39.1]} 25... Nc2 {[%clk 0:00:55.9]} 26. Qa5
{[%clk 0:01:36.7]} 26... Qd7 {[%clk 0:00:28.1]} 27. Nf4 {[%clk 0:01:28.1]} 27...
Rfd8 {[%clk 0:00:19.9]} 28. Nh5 {[%clk 0:01:23.5]} 28... Qe6 {[%clk 0:00:15.8]}
29. Nf4 {[%clk 0:01:08.4]} 29... Qb6 {[%clk 0:00:15.7]} 30. Qd2 {[%clk
0:01:07.3]} 30... Qb4 {[%clk 0:00:12.7]} 31. Qe2 {[%clk 0:01:06.9]} 31... Qb6
{[%clk 0:00:06.1]} 32. Nh5 {[%clk 0:01:05.9]} 32... Qg6 {[%clk 0:00:05.5]} 33.
Nf4 {[%clk 0:01:06]} 33... Qb6 {[%clk 0:00:05.7]} 34. a4 {[%clk 0:00:58.5]}
34... Nb4 {[%clk 0:00:05.1]} 35. Nh5 {[%clk 0:00:54.5]} 35... Qg6 {[%clk
0:00:05]} 36. Nf4 {[%clk 0:00:54.5]} 36... Qa6 {[%clk 0:00:05.1]} 37. e6 {[%clk
0:00:55.3]} 37... Qxe2 {[%clk 0:00:04.9]} 38. Nxe2 {[%clk 0:00:56]} 38... fxe6
{[%clk 0:00:04.9]} 39. Nf4 {[%clk 0:00:56.4]} 39... Kf7 {[%clk 0:00:04.7]} 40.
Re1 {[%clk 0:00:56.9]} 40... Re8 {[%clk 0:00:05.3]} 41. Rd1 {[%clk 0:00:53.6]}
41... Bf6 {[%clk 0:00:05.1]} 42. Nh5 {[%clk 0:00:52.5]} 42... Bg5 {[%clk
0:00:04.6]} 43. Nf4 {[%clk 0:00:52.9]} 43... Rc5 {[%clk 0:00:05]} 44. dxc5
{[%clk 0:00:52.8]} 44... Rd8 {[%clk 0:00:00.6]} 45. Nd3 {[%clk 0:00:50.6]} 1-0

[Event "Late-Titled-Tuesday-Blitz-January-30-2024"]
[Site "Chess.com"]
[Date "2024.01.30"]
[Round "9"]
[White "LastHeroJr"]
[Black "rikchessmx"]
[Result "1-0"]
[WhiteElo "2479"]
[BlackElo "2317"]
[TimeControl "180+1"]
[EndTime "15:44:18 PST"]
[Termination "LastHeroJr won by checkmate"]

1. e4 {[%clk 0:03:00.9]} 1... e5 {[%clk 0:02:58.3]} 2. Nf3 {[%clk 0:03:00.9]}
2... Nc6 {[%clk 0:02:59.2]} 3. Bc4 {[%clk 0:03:00.8]} 3... Bc5 {[%clk
0:02:59.5]} 4. O-O {[%clk 0:03:00]} 4... d6 {[%clk 0:02:58.8]} 5. d3 {[%clk
0:02:58.7]} 5... h6 {[%clk 0:02:58.3]} 6. a4 {[%clk 0:02:54.8]} 6... Qf6 {[%clk
0:02:56.6]} 7. c3 {[%clk 0:02:43.9]} 7... a6 {[%clk 0:02:55.6]} 8. b4 {[%clk
0:02:37.6]} 8... Ba7 {[%clk 0:02:54.5]} 9. Nbd2 {[%clk 0:02:27.9]} 9... Nge7
{[%clk 0:02:53.7]} 10. Re1 {[%clk 0:02:15.2]} 10... Ng6 {[%clk 0:02:51.6]} 11.
Rb1 {[%clk 0:02:10]} 11... O-O {[%clk 0:02:49.7]} 12. b5 {[%clk 0:02:05]} 12...
Nce7 {[%clk 0:02:44.8]} 13. bxa6 {[%clk 0:01:57.6]} 13... bxa6 {[%clk
0:02:43.9]} 14. h3 {[%clk 0:01:51.8]} 14... Nf4 {[%clk 0:02:42.6]} 15. Nf1
{[%clk 0:01:46.3]} 15... Bxh3 {[%clk 0:02:41.6]} 16. Bxf4 {[%clk 0:01:41.8]}
16... Bxg2 {[%clk 0:02:35.6]} 17. Kxg2 {[%clk 0:01:39.9]} 17... Qxf4 {[%clk
0:02:35.8]} 18. Ng3 {[%clk 0:01:30.6]} 18... Ng6 {[%clk 0:02:33.7]} 19. Qc1
{[%clk 0:01:20.9]} 19... Qg4 {[%clk 0:02:33.6]} 20. Ng1 {[%clk 0:01:06.4]} 20...
Nf4+ {[%clk 0:02:31]} 21. Kf1 {[%clk 0:01:06.7]} 21... h5 {[%clk 0:02:23.8]} 22.
Qd1 {[%clk 0:01:06.2]} 22... Qg5 {[%clk 0:02:23.1]} 23. Qf3 {[%clk 0:01:05.4]}
23... h4 {[%clk 0:02:16.9]} 24. Nf5 {[%clk 0:01:05.4]} 24... g6 {[%clk
0:02:14.5]} 25. Ne3 {[%clk 0:01:03.6]} 25... Kg7 {[%clk 0:02:13.7]} 26. Nh3
{[%clk 0:01:00.9]} 26... Nxh3 {[%clk 0:02:10.4]} 27. Qxh3 {[%clk 0:01:01.8]}
27... f5 {[%clk 0:02:04.3]} 28. exf5 {[%clk 0:01:01.7]} 28... gxf5 {[%clk
0:02:03.6]} 29. Ke2 {[%clk 0:01:00.7]} 29... Qh5+ {[%clk 0:02:02.4]} 30. Kd2
{[%clk 0:01:00.7]} 30... f4 {[%clk 0:01:50.6]} 31. Rg1+ {[%clk 0:00:57.9]} 31...
Kh8 {[%clk 0:01:49.5]} 32. Qd7 {[%clk 0:00:53.3]} 32... fxe3+ {[%clk 0:01:47.1]}
33. Kc2 {[%clk 0:00:24.3]} 33... Qe2+ {[%clk 0:01:40.3]} 34. Kb3 {[%clk
0:00:21.4]} 34... Rab8+ {[%clk 0:01:38.8]} 35. Bb5 {[%clk 0:00:21.8]} 35... Rg8
{[%clk 0:01:28.5]} 36. Qe7 {[%clk 0:00:21.3]} 36... Qh5 {[%clk 0:00:54.7]} 37.
Rh1 {[%clk 0:00:15.9]} 37... h3 {[%clk 0:00:50.4]} 38. Qe6 {[%clk 0:00:15.2]}
38... Rg4 {[%clk 0:00:46.7]} 39. Qf6+ {[%clk 0:00:14.7]} 39... Kg8 {[%clk
0:00:46.1]} 40. f3 {[%clk 0:00:11.8]} 40... Rg6 {[%clk 0:00:39.9]} 41. Rbg1
{[%clk 0:00:10.9]} 41... Kh7 {[%clk 0:00:37.3]} 42. Rxg6 {[%clk 0:00:08.7]}
42... Qxg6 {[%clk 0:00:26.1]} 43. Rxh3+ {[%clk 0:00:08.3]} 43... Kg8 {[%clk
0:00:26.3]} 44. Rh8# {[%clk 0:00:07.8]} 1-0

[Event "Late-Titled-Tuesday-Blitz-January-30-2024"]
[Site "Chess.com"]
[Date "2024.01.30"]
[Round "9"]
[White "Witik"]
[Black "tptagain"]
[Result "0-1"]
[WhiteElo "2680"]
[BlackElo "2915"]
[TimeControl "180+1"]
[EndTime "15:44:19 PST"]
[Termination "tptagain won on time"]

1. d4 {[%clk 0:02:59.8]} 1... d5 {[%clk 0:03:00]} 2. Nf3 {[%clk 0:02:58.4]} 2...
e6 {[%clk 0:02:59.6]} 3. c4 {[%clk 0:02:58.2]} 3... c6 {[%clk 0:02:59.4]} 4. Qc2
{[%clk 0:02:57.4]} 4... dxc4 {[%clk 0:02:56.5]} 5. Qxc4 {[%clk 0:02:56.5]} 5...
Nf6 {[%clk 0:02:56.3]} 6. Bg5 {[%clk 0:02:51]} 6... Nbd7 {[%clk 0:02:49.9]} 7.
Qc2 {[%clk 0:02:47.2]} 7... h6 {[%clk 0:02:47.9]} 8. Bh4 {[%clk 0:02:44]} 8...
c5 {[%clk 0:02:44.7]} 9. Nc3 {[%clk 0:02:40.1]} 9... cxd4 {[%clk 0:02:39.3]} 10.
Nxd4 {[%clk 0:02:30]} 10... Bc5 {[%clk 0:02:36.4]} 11. Rd1 {[%clk 0:02:18.2]}
11... O-O {[%clk 0:02:34.6]} 12. e3 {[%clk 0:02:17.5]} 12... b6 {[%clk 0:02:11]}
13. Bb5 {[%clk 0:02:07.7]} 13... Qc7 {[%clk 0:02:05]} 14. Bg3 {[%clk 0:02:00]}
14... e5 {[%clk 0:01:55.1]} 15. Nf5 {[%clk 0:01:39.8]} 15... g6 {[%clk
0:01:38.4]} 16. Nxh6+ {[%clk 0:01:05.4]} 16... Kg7 {[%clk 0:01:38.6]} 17. Nf5+
{[%clk 0:01:06]} 17... gxf5 {[%clk 0:01:39.1]} 18. Qxf5 {[%clk 0:01:06.9]} 18...
Rh8 {[%clk 0:01:10.3]} 19. Bxd7 {[%clk 0:00:46]} 19... Nxd7 {[%clk 0:01:08.5]}
20. Rxd7 {[%clk 0:00:20.5]} 20... Bxd7 {[%clk 0:00:16.4]} 21. Bxe5+ {[%clk
0:00:19.5]} 21... Kf8 {[%clk 0:00:16.4]} 22. Qf6 {[%clk 0:00:12.6]} 22... Qc6
{[%clk 0:00:16]} 23. Qxh8+ {[%clk 0:00:11.7]} 23... Ke7 {[%clk 0:00:16.5]} 24.
Qh4+ {[%clk 0:00:07.8]} 24... f6 {[%clk 0:00:15.4]} 25. O-O {[%clk 0:00:06.9]}
25... Rf8 {[%clk 0:00:13.3]} 26. Rd1 {[%clk 0:00:06.4]} 26... Be6 {[%clk
0:00:13.7]} 27. Bf4 {[%clk 0:00:03.5]} 27... Rf7 {[%clk 0:00:03.8]} 28. Qg3
{[%clk 0:00:03.6]} 28... Rf8 {[%clk 0:00:03.3]} 29. Qg7+ {[%clk 0:00:03.3]}
29... Bf7 {[%clk 0:00:03.5]} 30. Qg3 {[%clk 0:00:04]} 30... Rg8 {[%clk
0:00:03.9]} 31. Qh3 {[%clk 0:00:03]} 31... Be6 {[%clk 0:00:04.4]} 0-1

[Event "Late-Titled-Tuesday-Blitz-January-30-2024"]
[Site "Chess.com"]
[Date "2024.01.30"]
[Round "9"]
[White "PapaieDudu"]
[Black "Lion-Al-Messi"]
[Result "0-1"]
[WhiteElo "2400"]
[BlackElo "2595"]
[TimeControl "180+1"]
[EndTime "15:44:22 PST"]
[Termination "Lion-Al-Messi won by resignation"]

1. e4 {[%clk 0:03:00.9]} 1... e6 {[%clk 0:02:56.6]} 2. d4 {[%clk 0:02:57.5]}
2... d5 {[%clk 0:02:56.3]} 3. e5 {[%clk 0:02:57.9]} 3... c5 {[%clk 0:02:56.3]}
4. c3 {[%clk 0:02:58.2]} 4... Nc6 {[%clk 0:02:54.1]} 5. Nf3 {[%clk 0:02:58.1]}
5... Qb6 {[%clk 0:02:53.2]} 6. Be2 {[%clk 0:02:57.3]} 6... Nh6 {[%clk 0:02:51]}
7. O-O {[%clk 0:02:55.9]} 7... cxd4 {[%clk 0:02:51.1]} 8. cxd4 {[%clk
0:02:56.3]} 8... Nf5 {[%clk 0:02:51]} 9. Be3 {[%clk 0:02:55.9]} 9... Nxe3 {[%clk
0:02:50.6]} 10. fxe3 {[%clk 0:02:56.5]} 10... Be7 {[%clk 0:02:51]} 11. Nc3
{[%clk 0:02:55.9]} 11... O-O {[%clk 0:02:47.8]} 12. a3 {[%clk 0:02:56.1]} 12...
f6 {[%clk 0:02:46.1]} 13. exf6 {[%clk 0:02:55.3]} 13... Bxf6 {[%clk 0:02:47]}
14. b4 {[%clk 0:02:54]} 14... Bd7 {[%clk 0:02:46.1]} 15. Na4 {[%clk 0:02:54.2]}
15... Qc7 {[%clk 0:02:45.9]} 16. Nc5 {[%clk 0:02:54.9]} 16... Rac8 {[%clk
0:02:46.2]} 17. Rc1 {[%clk 0:02:53.3]} 17... b6 {[%clk 0:02:33.8]} 18. Nxd7
{[%clk 0:02:49.3]} 18... Qxd7 {[%clk 0:02:34.7]} 19. Bb5 {[%clk 0:02:49.5]}
19... Qd6 {[%clk 0:02:34.2]} 20. Qa4 {[%clk 0:02:48.5]} 20... Ne7 {[%clk
0:02:25.6]} 21. Qxa7 {[%clk 0:02:39.5]} 21... Ra8 {[%clk 0:02:25]} 22. Qd7
{[%clk 0:02:40]} 22... Rfd8 {[%clk 0:02:21.1]} 23. Qxd6 {[%clk 0:02:40.5]} 23...
Rxd6 {[%clk 0:02:22]} 24. a4 {[%clk 0:02:40.8]} 24... Nf5 {[%clk 0:02:21.6]} 25.
Kf2 {[%clk 0:02:39.2]} 25... Rdd8 {[%clk 0:02:20.7]} 26. Rc7 {[%clk 0:02:34.9]}
26... Nd6 {[%clk 0:02:19.7]} 27. Bc6 {[%clk 0:02:31.9]} 27... Rac8 {[%clk
0:02:16.2]} 28. Rxc8 {[%clk 0:02:30.1]} 28... Rxc8 {[%clk 0:02:17.1]} 29. Rc1
{[%clk 0:02:28.2]} 29... Ne4+ {[%clk 0:02:14]} 30. Ke2 {[%clk 0:02:23.5]} 30...
Be7 {[%clk 0:02:13.9]} 31. b5 {[%clk 0:02:21.8]} 31... Bd6 {[%clk 0:02:04.2]}
32. Kd3 {[%clk 0:02:16.6]} 32... Rc7 {[%clk 0:02:03.4]} 33. Ra1 {[%clk
0:02:08.3]} 33... Ra7 {[%clk 0:02:02.9]} 34. Nd2 {[%clk 0:01:58.3]} 34... Nxd2
{[%clk 0:01:58.8]} 35. Kxd2 {[%clk 0:01:58.4]} 35... Bxh2 {[%clk 0:01:59.7]} 36.
Kc3 {[%clk 0:01:39.6]} 36... Bd6 {[%clk 0:01:58.3]} 37. Kb3 {[%clk 0:01:39.5]}
37... h5 {[%clk 0:01:55.2]} 38. Rh1 {[%clk 0:01:29.7]} 38... g6 {[%clk
0:01:55.2]} 39. e4 {[%clk 0:01:13.7]} 39... dxe4 {[%clk 0:01:48.4]} 40. Re1
{[%clk 0:01:13.6]} 40... Kf7 {[%clk 0:01:33.3]} 41. Rxe4 {[%clk 0:01:13.6]}
41... Kf6 {[%clk 0:01:33]} 42. Re3 {[%clk 0:01:04.5]} 42... g5 {[%clk
0:01:31.9]} 43. Rf3+ {[%clk 0:01:04.4]} 43... Kg7 {[%clk 0:01:32.5]} 44. d5
{[%clk 0:00:56.6]} 44... exd5 {[%clk 0:01:30.5]} 45. Bxd5 {[%clk 0:00:56.7]}
45... h4 {[%clk 0:01:29.2]} 46. Be6 {[%clk 0:00:54]} 46... Re7 {[%clk
0:01:27.4]} 47. Bf5 {[%clk 0:00:45.2]} 47... Re2 {[%clk 0:01:23.8]} 48. Rd3
{[%clk 0:00:36.1]} 48... Bc5 {[%clk 0:01:19.8]} 49. Bh3 {[%clk 0:00:29.5]} 49...
Re4 {[%clk 0:01:19.6]} 50. Rc3 {[%clk 0:00:28]} 50... Rb4+ {[%clk 0:01:18.9]}
51. Ka3 {[%clk 0:00:26.8]} 51... g4 {[%clk 0:01:17.8]} 52. a5 {[%clk 0:00:24.5]}
52... gxh3 {[%clk 0:00:57.4]} 53. Rxh3 {[%clk 0:00:24.7]} 53... Rxb5+ {[%clk
0:00:53.6]} 54. Ka2 {[%clk 0:00:25.3]} 54... Rxa5+ {[%clk 0:00:54.5]} 55. Kb3
{[%clk 0:00:26]} 55... Ra3+ {[%clk 0:00:54.4]} 56. Kc4 {[%clk 0:00:26.7]} 56...
Rxh3 {[%clk 0:00:55.2]} 57. Kb5 {[%clk 0:00:27.5]} 57... Rg3 {[%clk 0:00:54.8]}
58. Kc6 {[%clk 0:00:28.1]} 58... Rxg2 {[%clk 0:00:55.7]} 59. Kd5 {[%clk
0:00:28.8]} 59... h3 {[%clk 0:00:56.3]} 60. Kc4 {[%clk 0:00:29.7]} 60... h2
{[%clk 0:00:56.7]} 61. Kb5 {[%clk 0:00:30.6]} 61... h1=Q {[%clk 0:00:56.9]} 62.
Kc6 {[%clk 0:00:31.5]} 62... Rb2+ {[%clk 0:00:56.8]} 63. Kc7 {[%clk 0:00:31.1]}
63... Bd6+ {[%clk 0:00:56.5]} 64. Kd7 {[%clk 0:00:31.3]} 64... Qb7+ {[%clk
0:00:56.1]} 65. Ke6 {[%clk 0:00:31.7]} 65... Re2+ {[%clk 0:00:55.9]} 66. Kf5
{[%clk 0:00:31.1]} 0-1

[Event "Late-Titled-Tuesday-Blitz-January-30-2024"]
[Site "Chess.com"]
[Date "2024.01.30"]
[Round "9"]
[White "DeArron_Fox"]
[Black "IngOscarArdila"]
[Result "0-1"]
[WhiteElo "2462"]
[BlackElo "2329"]
[TimeControl "180+1"]
[EndTime "15:44:24 PST"]
[Termination "IngOscarArdila won by resignation"]

1. d4 {[%clk 0:03:00.9]} 1... Nf6 {[%clk 0:03:00]} 2. c4 {[%clk 0:02:58.3]} 2...
c5 {[%clk 0:02:57.2]} 3. d5 {[%clk 0:02:58.1]} 3... d6 {[%clk 0:02:55]} 4. Nc3
{[%clk 0:02:58]} 4... g6 {[%clk 0:02:54]} 5. Nf3 {[%clk 0:02:58.5]} 5... Bg7
{[%clk 0:02:54.3]} 6. e4 {[%clk 0:02:58.9]} 6... Bg4 {[%clk 0:02:52.1]} 7. Be2
{[%clk 0:02:58.5]} 7... O-O {[%clk 0:02:51.1]} 8. O-O {[%clk 0:02:58.7]} 8...
Nbd7 {[%clk 0:02:50.8]} 9. Nd2 {[%clk 0:02:56.5]} 9... Bxe2 {[%clk 0:02:50.3]}
10. Qxe2 {[%clk 0:02:57.4]} 10... a6 {[%clk 0:02:48.7]} 11. a4 {[%clk
0:02:54.7]} 11... e6 {[%clk 0:02:27.3]} 12. h3 {[%clk 0:02:52.7]} 12... exd5
{[%clk 0:02:27.2]} 13. cxd5 {[%clk 0:02:53.6]} 13... Re8 {[%clk 0:02:26.3]} 14.
Re1 {[%clk 0:02:51.9]} 14... Qa5 {[%clk 0:02:14.4]} 15. Nc4 {[%clk 0:02:51.2]}
15... Qc7 {[%clk 0:02:11.7]} 16. Bf4 {[%clk 0:02:50.6]} 16... Ne5 {[%clk
0:02:06.9]} 17. Nxe5 {[%clk 0:02:14.6]} 17... dxe5 {[%clk 0:02:06.9]} 18. Be3
{[%clk 0:02:15.2]} 18... Red8 {[%clk 0:02:00.9]} 19. a5 {[%clk 0:02:15]} 19...
Bf8 {[%clk 0:01:47.2]} 20. Rec1 {[%clk 0:02:12.9]} 20... Bd6 {[%clk 0:01:45.6]}
21. f3 {[%clk 0:01:32]} 21... Qe7 {[%clk 0:01:42.9]} 22. Na4 {[%clk 0:01:31.2]}
22... Rac8 {[%clk 0:01:37.5]} 23. Rc4 {[%clk 0:01:24.5]} 23... Nd7 {[%clk
0:01:37]} 24. Rac1 {[%clk 0:01:22.7]} 24... f5 {[%clk 0:01:35.3]} 25. R1c3
{[%clk 0:01:17.7]} 25... f4 {[%clk 0:01:34.1]} 26. Bf2 {[%clk 0:01:17.6]} 26...
Qf8 {[%clk 0:01:34.2]} 27. Qc2 {[%clk 0:01:15.7]} 27... Kf7 {[%clk 0:01:02.9]}
28. Nxc5 {[%clk 0:01:15.2]} 28... Nxc5 {[%clk 0:00:54.7]} 29. Bxc5 {[%clk
0:01:16.1]} 29... Rxc5 {[%clk 0:00:36.2]} 30. Rxc5 {[%clk 0:01:17]} 30... Qe7
{[%clk 0:00:32.2]} 31. R5c4 {[%clk 0:01:00.1]} 31... Rd7 {[%clk 0:00:32]} 32.
Rc8 {[%clk 0:00:51.1]} 32... Qh4 {[%clk 0:00:28.7]} 33. Qf2 {[%clk 0:00:47.5]}
33... Qe7 {[%clk 0:00:26]} 34. Rc1 {[%clk 0:00:37.4]} 34... g5 {[%clk
0:00:23.1]} 35. Rh8 {[%clk 0:00:27.3]} 35... Kg7 {[%clk 0:00:22.3]} 36. Rcc8
{[%clk 0:00:26.4]} 36... Rc7 {[%clk 0:00:20.5]} 37. Rcg8+ {[%clk 0:00:13.3]}
37... Kh6 {[%clk 0:00:20.7]} 38. Rc8 {[%clk 0:00:08.8]} 38... Bc5 {[%clk
0:00:17.5]} 39. Kf1 {[%clk 0:00:01.4]} 39... Bxf2 {[%clk 0:00:17.1]} 40. Kxf2
{[%clk 0:00:02.3]} 40... Qc5+ {[%clk 0:00:16.5]} 0-1

[Event "Late-Titled-Tuesday-Blitz-January-30-2024"]
[Site "Chess.com"]
[Date "2024.01.30"]
[Round "9"]
[White "GMBenjaminBok"]
[Black "dropstoneDP"]
[Result "0-1"]
[WhiteElo "2947"]
[BlackElo "3058"]
[TimeControl "180+1"]
[EndTime "15:44:25 PST"]
[Termination "dropstoneDP won on time"]

1. Nf3 {[%clk 0:03:00.9]} 1... d5 {[%clk 0:02:59.8]} 2. d4 {[%clk 0:03:01]} 2...
Nf6 {[%clk 0:02:59.9]} 3. c4 {[%clk 0:03:01.2]} 3... dxc4 {[%clk 0:03:00.8]} 4.
e3 {[%clk 0:03:01.1]} 4... e6 {[%clk 0:03:01.5]} 5. Bxc4 {[%clk 0:03:01.2]} 5...
c5 {[%clk 0:03:02.1]} 6. O-O {[%clk 0:03:01.2]} 6... Nc6 {[%clk 0:03:02.8]} 7.
dxc5 {[%clk 0:02:56]} 7... Qxd1 {[%clk 0:03:03.7]} 8. Rxd1 {[%clk 0:02:56.4]}
8... Bxc5 {[%clk 0:03:04.4]} 9. b3 {[%clk 0:02:50.9]} 9... O-O {[%clk
0:03:02.1]} 10. Bb2 {[%clk 0:02:51]} 10... b6 {[%clk 0:03:02.5]} 11. Nbd2 {[%clk
0:02:38.9]} 11... Bb7 {[%clk 0:02:57.7]} 12. Rac1 {[%clk 0:02:33.2]} 12... Rfd8
{[%clk 0:02:55.8]} 13. a3 {[%clk 0:02:27.6]} 13... Be7 {[%clk 0:02:52.6]} 14.
Kf1 {[%clk 0:02:23.9]} 14... Rac8 {[%clk 0:02:46.9]} 15. Ke2 {[%clk 0:02:08.7]}
15... Kf8 {[%clk 0:02:46.8]} 16. Bd3 {[%clk 0:02:03.9]} 16... h6 {[%clk
0:02:35.3]} 17. b4 {[%clk 0:01:50]} 17... g5 {[%clk 0:01:30.7]} 18. h3 {[%clk
0:01:45.2]} 18... Nd5 {[%clk 0:01:25.8]} 19. Nc4 {[%clk 0:00:54.3]} 19... Bf6
{[%clk 0:01:04.1]} 20. Bxf6 {[%clk 0:00:53.4]} 20... Nxf6 {[%clk 0:01:05]} 21.
Ke1 {[%clk 0:00:31.8]} 21... b5 {[%clk 0:00:51.2]} 22. Nb2 {[%clk 0:00:26.2]}
22... a5 {[%clk 0:00:49]} 23. bxa5 {[%clk 0:00:23]} 23... Nxa5 {[%clk
0:00:49.1]} 24. Bxb5 {[%clk 0:00:20.3]} 24... Rxd1+ {[%clk 0:00:41.4]} 25. Kxd1
{[%clk 0:00:16.3]} 25... Rd8+ {[%clk 0:00:23.9]} 26. Ke2 {[%clk 0:00:16.5]}
26... Nb3 {[%clk 0:00:21.8]} 27. Rc7 {[%clk 0:00:16.4]} 27... Bxf3+ {[%clk
0:00:21.5]} 28. Kxf3 {[%clk 0:00:17.3]} 28... Rd2 {[%clk 0:00:16.1]} 29. Nd3
{[%clk 0:00:10.7]} 29... Ra2 {[%clk 0:00:10.6]} 30. Ne5 {[%clk 0:00:06.7]} 30...
Nd2+ {[%clk 0:00:11.2]} 31. Kg3 {[%clk 0:00:06.8]} 31... Nfe4+ {[%clk 0:00:08]}
32. Kh2 {[%clk 0:00:06.4]} 32... f5 {[%clk 0:00:05.8]} 33. Rf7+ {[%clk
0:00:02.2]} 33... Kg8 {[%clk 0:00:05.9]} 34. Bd7 {[%clk 0:00:03.1]} 34... Nc5
{[%clk 0:00:04.7]} 0-1